bitfinex/quotes_SOLUSD_20250315
["timestamp","ask_amount","ask_price","bid_price","bid_amount"]
[1742007679536,13.11034161,134.87,134.84,80.763]
[1742007680151,20.52484161,134.87,134.84,80.763]
[1742007680730,7.4128,134.9,134.84,80.763]
[1742007680937,13.11034161,134.88,134.84,0.063]
[1742007682536,20.52434161,134.88,134.84,0.063]
[1742007683754,33.11034161,134.89,134.84,0.063]
[1742007684135,13.11034161,134.88,134.84,0.063]
[1742007691758,40.52384161,134.89,134.84,0.063]
[1742007693653,13.11034161,134.88,134.84,0.063]
[1742007694861,13.11034161,134.9,134.84,0.063]
[1742007695060,0.03,134.91,134.85,1.5039]
[1742007695767,0.03,134.91,134.86,7.415]
[1742007699862,0.03,134.91,134.86,88.115]
[1742007700953,0.03,134.91,134.87,0.14216157]
[1742007701153,0.03,134.91,134.87,80.84216157]
[1742007701958,0.03,134.91,134.88,25.9488]
[1742007705665,0.03,134.91,134.88,106.6488]
[1742007706550,0.03,134.91,134.9,1.5366]
[1742007706757,0.0001,134.91,134.9,88.81876157]
[1742007707572,0.0001,134.91,134.9,96.23156157]
[1742007708971,0.0001,134.91,134.9,115.023372]
[1742007716878,0.0001,134.91,134.9,80.7]
[1742007717276,0.0001,134.91,134.9,88.1128]
[1742007717878,0.0001,134.91,134.9,80.7]
[1742007718681,0.0001,134.91,134.9,88.1128]
[1742007726182,0.0001,134.91,134.9,0.063]
[1742007726376,0.0001,134.91,134.85,7.4154]
[1742007726377,14.65784161,134.91,134.85,7.4154]
[1742007726570,14.65784161,134.91,134.84,80.763]
[1742007726571,13.11034161,134.87,134.84,0.063]
[1742007726891,13.11034161,134.86,134.84,0.063]
[1742007727694,13.11034161,134.87,134.84,0.063]
[1742007728689,6.0654,134.88,134.84,0.063]
[1742007729481,19.17574161,134.88,134.84,0.063]
[1742007729679,13.11034161,134.87,134.84,0.063]
[1742007729877,13.11034161,134.86,134.84,0.063]
[1742007730299,13.11034161,134.87,134.84,0.063]
[1742007732506,20.52494161,134.87,134.84,0.063]
[1742007733793,13.11034161,134.87,134.84,0.063]
[1742007733995,19.17574161,134.88,134.84,0.063]
[1742007734177,13.11034161,134.87,134.84,0.063]
[1742007735500,26.58974161,134.88,134.84,0.063]
[1742007737492,19.17574161,134.88,134.84,0.063]
[1742007737693,20.52344161,134.9,134.84,0.063]
[1742007737884,13.11034161,134.89,134.84,0.063]
[1742007738084,13.11034161,134.88,134.84,0.063]
[1742007740503,13.11034161,134.89,134.84,0.063]
[1742007742797,21.09784161,134.91,134.84,0.063]
[1742007743501,22.07014161,134.91,134.84,7.4791]
[1742007745807,13.11034161,134.9,134.84,7.4791]
[1742007747006,20.52324161,134.9,134.84,7.4791]
[1742007747714,20.52324161,134.9,134.84,88.1791]
[1742007748288,13.11034161,134.9,134.84,88.1791]
[1742007752614,12.7396005,134.9,134.84,88.1791]
[1742007754321,12.7396005,134.9,134.84,106.7195]
[1742007755213,22.07024161,134.91,134.84,106.7195]
[1742007755512,13.11044161,134.91,134.84,106.7195]
[1742007755715,20.52274161,134.91,134.84,106.7195]
[1742007756315,13.11044161,134.91,134.84,106.7195]
[1742007757798,20.52274161,134.91,134.84,106.7195]
[1742007758316,13.11034161,134.9,134.84,106.7195]
[1742007760016,13.11044161,134.91,134.84,106.7195]
[1742007762307,0.0001,134.91,134.84,113.1595]
[1742007762698,0.0001,134.91,134.85,0.14216157]
[1742007763620,0.0001,134.91,134.87,1.5719]
[1742007763798,0.0001,134.91,134.87,82.2719]
[1742007765606,0.0001,134.91,134.88,25.9488]
[1742007765802,0.0001,134.91,134.88,106.6488]
[1742007766002,0.0001,134.91,134.89,6.42]
[1742007768222,0.0001,134.91,134.9,7.4128]
[1742007770015,0.0001,134.91,134.9,88.1128]
[1742007770628,14.56994161,134.98,134.9,106.645]
[1742007770806,13.11034161,134.98,134.9,106.645]
[1742007771500,26.77994161,134.99,134.9,106.645]
[1742007772620,19.37184161,134.99,134.9,106.645]
[1742007772827,6.2615,134.99,134.91,1.5466]
[1742007773128,19.37184161,134.99,134.91,1.5466]
[1742007773321,20.51744161,135.01,134.91,88.7705]
[1742007773915,7.4071,135.01,134.91,88.7705]
[1742007774119,225.66684161,135.02,134.92,18.933972]
[1742007774807,225.66684161,135.02,134.93,25.9393]
[1742007775011,205.15,135.02,134.94,6.42]
[1742007775213,205.15,135.02,134.95,1.5466]
[1742007776934,0.03,135.02,134.97,6.5239]
[1742007777127,0.03,135.02,134.98,0.14216157]
[1742007777310,0.03,135.02,134.99,25.06964886]
[1742007779619,0.03,135.02,135.0,7.4074]
[1742007779815,0.03,135.02,135.0,88.1074]
[1742007781118,0.03,135.02,135.01,20.584272]
[1742007782935,0.03,135.02,135.01,101.284272]
[1742007783130,0.03,135.05,135.03,18.933972]
[1742007783343,0.03,135.07,135.06,6.28492314]
[1742007783546,0.03,135.1,135.07,18.64964886]
[1742007783836,0.03,135.11,135.1,18.933972]
[1742007784031,0.03,135.11,135.1,107.704272]
[1742007784335,10.929,135.19,135.12,38.933972]
[1742007784742,10.959,135.19,135.12,38.933972]
[1742007785248,31.46634161,135.19,135.12,80.7]
[1742007785737,24.06934161,135.19,135.12,80.7]
[1742007785940,31.46634161,135.19,135.12,80.7]
[1742007787435,13.14034161,135.17,135.12,80.7]
[1742007788030,13.11034161,135.15,135.12,80.7]
[1742007788743,13.11034161,135.15,135.1,80.7]
[1742007789319,20.50994161,135.15,135.1,80.7]
[1742007789520,7.3996,135.15,135.1,80.7]
[1742007789734,20.53914161,135.16,135.1,80.7]
[1742007790413,7.3992,135.15,135.1,80.7]
[1742007792639,20.50954161,135.15,135.1,80.7]
[1742007793551,13.11034161,135.14,135.09,80.7]
[1742007793727,13.11034161,135.11,135.06,80.7]
[1742007794135,13.11034161,135.12,135.06,80.7]
[1742007794649,25.9309,135.13,135.06,80.7]
[1742007794650,13.11034161,135.11,135.06,80.7]
[1742007795147,20.51214161,135.11,135.06,80.7]
[1742007795339,20.51214161,135.11,135.06,88.1041]
[1742007795541,20.51134161,135.12,135.06,80.7]
[1742007795751,13.11034161,135.11,135.06,80.7]
[1742007796527,13.11034161,135.1,135.06,80.7]
[1742007797028,20.51274161,135.1,135.06,80.7]
[1742007797551,13.11034161,135.08,135.04,80.7]
[1742007798555,13.11034161,135.07,135.04,80.7]
[1742007799648,20.51374161,135.08,135.04,80.7]
[1742007800448,6.0734,135.09,135.04,88.1049]
[1742007800449,26.53752588,135.09,135.04,88.1049]
[1742007803750,22.07282588,135.1,135.04,106.6179]
[1742007803947,20.46412588,135.09,135.04,88.1049]
[1742007805661,1.6087,135.1,135.04,88.1049]
[1742007805662,22.07282588,135.1,135.04,88.1049]
[1742007806245,20.46412588,135.09,135.04,88.1049]
[1742007811033,20.46412588,135.08,135.04,80.7]
[1742007811643,27.86712588,135.08,135.04,80.7]
[1742007811846,20.46412588,135.07,135.04,80.7]
[1742007812863,20.46412588,135.06,135.04,80.7]
[1742007813063,20.46412588,135.05,135.04,80.7]
[1742007813359,27.86892588,135.05,135.03,0.063]
[1742007813662,20.46412588,135.04,135.03,0.063]
[1742007817762,8.1763,135.1,135.03,80.763]
[1742007817980,20.46412588,135.11,135.03,88.7199]
[1742007818149,20.49412588,135.12,135.03,88.7199]
[1742007818648,20.49412588,135.12,135.04,18.933972]
[1742007819145,20.49412588,135.12,135.04,99.633972]
[1742007819341,20.46412588,135.1,135.04,80.7]
[1742007819854,20.46412588,135.1,135.05,7.4046]
[1742007821547,20.46412588,135.1,135.05,13.8246]
[1742007822468,7.4015,135.11,135.05,13.8246]
[1742007822469,20.46412588,135.11,135.05,13.8246]
[1742007823873,20.46412588,135.1,135.05,13.8246]
[1742007825376,20.46412588,135.11,135.05,13.8246]
[1742007825754,20.46412588,135.1,135.05,13.8246]
[1742007826488,20.46412588,135.09,135.05,13.8246]
[1742007826654,20.46412588,135.09,135.04,88.1051]
[1742007827152,20.46412588,135.08,135.04,88.1051]
[1742007827667,20.46412588,135.09,135.04,88.1051]
[1742007827866,20.46412588,135.08,135.04,88.1051]
[1742007828168,20.46412588,135.09,135.04,88.1051]
[1742007828370,13.0950398,135.1,135.04,106.6181]
[1742007828756,0.03,135.12,135.04,106.6181]
[1742007828973,13.0950398,135.11,135.04,106.6181]
[1742007829201,13.0950398,135.1,135.04,106.6181]
[1742007831483,13.0950398,135.11,135.04,106.6181]
[1742007831781,13.1250398,135.12,135.05,0.28432314]
[1742007833574,13.1250398,135.12,135.06,25.9143]
[1742007833873,0.03,135.12,135.06,106.6143]
[1742007834871,13.1250398,135.12,135.06,106.6143]
[1742007835271,13.0950398,135.11,135.06,106.6143]
[1742007835476,13.0950398,135.1,135.06,88.1041]
[1742007835779,13.0950398,135.1,135.06,88.104]
[1742007836179,13.0950398,135.09,135.04,7.4047]
[1742007836557,13.0950398,135.1,135.04,7.4047]
[1742007836763,13.0950398,135.11,135.04,7.4047]
[1742007837772,20.4964398,135.11,135.04,25.9177]
[1742007837975,13.0950398,135.1,135.04,25.9177]
[1742007838374,13.0950398,135.1,135.04,7.4047]
[1742007839081,13.0950398,135.09,135.04,7.4047]
[1742007839266,13.0950398,135.1,135.04,7.4047]
[1742007840782,20.4970398,135.1,135.04,7.4047]
[1742007841383,13.0950398,135.1,135.04,7.4047]
[1742007841589,13.0950398,135.09,135.04,88.1047]
[1742007842489,13.0950398,135.08,135.04,88.1047]
[1742007843296,13.0950398,135.08,135.04,80.7]
[1742007844099,20.4983398,135.08,135.04,80.7]
[1742007845493,20.4983398,135.08,135.04,88.1051]
[1742007846190,13.0950398,135.05,135.03,0.063]
[1742007847171,13.0950398,135.06,135.03,0.063]
[1742007847375,13.0950398,135.07,135.03,7.4687]
[1742007847794,13.0950398,135.08,135.03,7.4687]
[1742007848094,20.4982398,135.08,135.03,0.063]
[1742007848395,13.0950398,135.07,135.03,0.063]
[1742007850693,13.0950398,135.08,135.03,0.063]
[1742007851575,13.0950398,135.07,135.03,0.063]
[1742007853401,13.0950398,135.08,135.03,0.063]
[1742007855004,13.0950398,135.07,135.03,0.063]
[1742007855301,13.0950398,135.08,135.03,0.063]
[1742007856090,13.0950398,135.07,135.03,0.063]
[1742007856502,13.0950398,135.08,135.03,0.063]
[1742007856706,13.0950398,135.07,135.03,0.063]
[1742007858106,13.0950398,135.08,135.03,0.063]
[1742007865110,13.0950398,135.09,135.03,0.063]
[1742007865805,13.0950398,135.08,135.03,0.063]
[1742007876922,13.0950398,135.06,135.03,0.063]
[1742007877422,13.0950398,135.05,135.03,0.063]
[1742007878618,13.0950398,135.06,135.03,0.063]
[1742007879231,7.4038,135.07,135.03,0.063]
[1742007879232,13.0950398,135.07,135.03,0.063]
[1742007879411,13.0950398,135.08,135.03,0.063]
[1742007879613,13.0950398,135.07,135.03,0.063]
[1742007880607,7.4027,135.09,135.03,0.063]
[1742007880809,13.0950398,135.07,135.03,0.063]
[1742007882911,26.336072,135.1,135.03,0.063]
[1742007883111,13.0950398,135.08,135.03,0.063]
[1742007883316,13.0950398,135.07,135.03,0.063]
[1742007884030,13.0950398,135.07,135.03,7.4687]
[1742007885126,13.0950398,135.08,135.03,7.4687]
[1742007885322,13.0950398,135.08,135.03,25.9831]
[1742007886411,13.0950398,135.07,135.03,25.9831]
[1742007887932,13.0950398,135.07,135.03,7.4687]
[1742007889031,13.0950398,135.08,135.03,7.4687]
[1742007890133,13.0950398,135.07,135.03,7.4687]
[1742007891126,13.0950398,135.08,135.03,7.4687]
[1742007891828,13.0950398,135.07,135.03,0.063]
[1742007892031,13.0950398,135.06,135.03,0.063]
[1742007892533,13.0950398,135.05,135.03,0.063]
[1742007893112,13.0950398,135.04,135.03,0.063]
[1742007894327,13.0950398,135.05,135.03,0.063]
[1742007899737,13.0950398,135.06,135.03,0.063]
[1742007900719,13.0950398,135.04,135.03,0.063]
[1742007901131,20.5002398,135.04,135.03,0.063]
[1742007903819,20.0,135.01,135.0,0.063]
[1742007904021,33.0950398,135.01,135.0,0.063]
[1742007904239,13.0950398,135.01,135.0,0.063]
[1742007904642,13.0950398,135.02,135.0,0.063]
[1742007905541,13.0950398,135.03,135.0,0.063]
[1742007905733,13.0950398,135.04,135.0,0.063]
[1742007907143,13.0950398,135.05,135.0,0.063]
[1742007907448,13.0950398,135.07,135.0,80.763]
[1742007907947,13.0950398,135.06,135.0,80.763]
[1742007908442,13.0950398,135.07,135.0,80.763]
[1742007908826,13.0950398,135.07,135.01,25.9239]
[1742007911850,13.0950398,135.07,135.01,106.6239]
[1742007912345,13.0950398,135.06,135.01,106.6239]
[1742007912555,13.0950398,135.07,135.01,106.6239]
[1742007913451,13.0950398,135.03,135.01,80.7]
[1742007913641,13.0950398,135.02,135.0,0.063]
[1742007913840,25.353972,135.07,135.0,0.063]
[1742007913841,13.0950398,135.01,135.0,0.063]
[1742007916339,20.5018398,135.01,135.0,0.063]
[1742007922569,7.4068,135.01,135.0,0.063]
[1742007922771,13.0950398,135.01,135.0,0.063]
[1742007925058,13.0950398,135.02,135.0,0.063]
[1742007925854,13.0950398,135.01,135.0,0.063]
[1742007927960,20.5018398,135.01,135.0,0.063]
[1742007930562,13.0950398,135.01,135.0,0.063]
[1742007931060,20.5018398,135.01,135.0,0.063]
[1742007934964,20.5018398,135.01,134.94,87.12]
[1742007935149,13.0950398,134.99,134.94,87.12]
[1742007936070,20.5030398,134.99,134.94,94.5303]
[1742007937066,20.5030398,134.99,134.94,88.1103]
[1742007937865,26.340272,135.02,134.94,88.1103]
[1742007938069,13.0950398,135.0,134.94,88.1103]
[1742007938276,13.0950398,135.0,134.94,88.1733]
[1742007938573,7.4063,135.02,134.94,106.7]
[1742007938574,13.0950398,134.99,134.94,106.7]
[1742007938749,13.0950398,134.98,134.94,88.1733]
[1742007938954,13.0950398,134.96,134.94,0.063]
[1742007941355,7.4089,134.98,134.94,0.063]
[1742007941356,13.0950398,134.95,134.94,0.063]
[1742007945481,7.4097,134.96,134.94,0.063]
[1742007945668,13.0950398,134.95,134.94,0.063]
[1742007946071,20.0,134.96,134.94,0.063]
[1742007946270,13.0950398,134.95,134.94,0.063]
[1742007946969,20.0,134.96,134.94,0.063]
[1742007947171,13.0950398,134.95,134.94,0.063]
[1742007948581,33.0950398,134.96,134.94,0.063]
[1742007948762,20.0,134.96,134.94,0.063]
[1742007948962,33.0950398,134.96,134.94,0.063]
[1742007949868,40.5046398,134.96,134.94,0.063]
[1742007950174,13.1250398,134.95,134.94,0.063]
[1742007951678,0.03,134.95,134.94,0.063]
[1742007951884,13.1250398,134.95,134.94,0.063]
[1742007953965,0.03,134.95,134.94,0.063]
[1742007959586,13.1250398,134.95,134.94,0.063]
[1742007960870,0.03,134.95,134.94,0.063]
[1742007965502,13.1250398,134.95,134.94,0.063]
[1742007965997,13.1250398,134.95,134.9,0.063]
[1742007965998,0.28432314,134.91,134.9,0.063]
[1742007966170,32.0290118,134.91,134.9,0.063]
[1742007966371,38.4490118,134.91,134.89,0.063]
[1742007966580,32.0290118,134.9,134.89,0.063]
[1742007966804,13.0950398,134.9,134.89,0.063]
[1742007968177,19.5150398,134.91,134.89,0.063]
[1742007968375,14.7428398,134.92,134.89,0.063]
[1742007968592,20.0,134.91,134.89,0.063]
[1742007969086,33.0950398,134.91,134.89,0.063]
[1742007969493,20.0,134.91,134.89,0.063]
[1742007970379,13.0950398,134.92,134.89,0.063]
[1742007970975,20.22106157,134.94,134.89,0.063]
[1742007971176,13.0950398,134.93,134.89,0.063]
[1742007971380,19.5150398,134.94,134.89,0.063]
[1742007973503,13.0950398,134.94,134.89,0.063]
[1742007973703,13.1250398,134.95,134.89,0.063]
[1742007975299,13.0950398,134.94,134.89,0.063]
[1742007976594,20.0,134.94,134.89,0.063]
[1742007980601,0.03,134.95,134.89,0.063]
[1742007980906,0.03,134.95,134.89,88.7725]
[1742007982709,0.03,134.95,134.9,25.945]
[1742007990914,0.03,134.95,134.9,106.645]
[1742007992712,0.03,134.95,134.9,88.1128]
[1742007993602,13.0950398,134.92,134.89,0.063]
[1742007993917,13.0950398,134.91,134.89,0.063]
[1742007995120,20.5074398,134.91,134.89,0.063]
[1742007997404,20.5074398,134.91,134.9,0.063]
[1742007999503,7.4124,134.91,134.9,0.063]
[1742008000514,20.5068398,134.92,134.9,0.063]
[1742008001520,13.0950398,134.94,134.9,0.063]
[1742008001817,20.5353398,134.95,134.9,0.063]
[1742008002010,13.0950398,134.94,134.9,0.063]
[1742008004348,20.5353398,134.95,134.9,0.063]
[1742008005330,13.0950398,134.94,134.9,0.063]
[1742008005830,0.03,134.95,134.9,0.063]
[1742008007231,20.5352398,134.95,134.9,0.063]
[1742008009830,13.0950398,134.94,134.9,0.063]
[1742008010034,13.0950398,134.93,134.9,0.063]
[1742008011234,13.0950398,134.94,134.9,0.063]
[1742008012734,20.5353398,134.95,134.9,0.063]
[1742008013444,13.0950398,134.94,134.9,0.063]
[1742008013737,13.1250398,134.95,134.9,0.063]
[1742008014337,13.0950398,134.94,134.9,0.063]
[1742008015239,20.5353398,134.95,134.9,0.063]
[1742008017244,13.0950398,134.94,134.9,0.063]
[1742008019541,20.5353398,134.95,134.9,0.063]
[1742008021838,0.03,134.95,134.9,0.063]
[1742008022441,13.0950398,134.94,134.9,0.063]
[1742008023143,0.03,134.95,134.9,0.063]
[1742008023340,13.1250398,134.95,134.9,0.063]
[1742008023640,0.03,134.95,134.9,0.063]
[1742008025041,0.03,134.95,134.91,13.9498]
[1742008025219,0.03,134.95,134.93,18.933972]
[1742008025423,0.03,134.95,134.93,99.633972]
[1742008027222,0.03,134.95,134.94,26.344672]
[1742008029034,0.03,134.95,134.94,107.044672]
[1742008030846,0.03,134.95,134.94,80.7]
[1742008032244,13.1250398,134.95,134.9,80.763]
[1742008034154,7.4107,134.94,134.9,80.763]
[1742008034328,0.03,134.95,134.94,20.0]
[1742008034527,0.03,134.95,134.94,119.633972]
[1742008036255,0.03,134.95,134.94,127.044672]
[1742008037461,0.03,134.95,134.94,108.1107]
[1742008038171,0.03,134.95,134.94,127.044672]
[1742008038549,0.03,134.95,134.94,107.044672]
[1742008039966,0.03,134.95,134.94,88.1107]
[1742008044644,0.03,134.95,134.94,80.7]
[1742008045370,0.03,134.95,134.94,88.1107]
[1742008057568,0.03,134.95,134.94,107.044672]
[1742008057770,19.4375398,135.02,134.95,18.933972]
[1742008057945,19.4375398,135.02,134.95,99.633972]
[1742008058770,9.0382,135.03,134.95,106.124172]
[1742008058771,1.6324,135.03,134.95,106.124172]
[1742008059270,14.7274398,135.03,134.95,106.124172]
[1742008059667,14.7274398,135.03,134.97,18.933972]
[1742008060651,14.7274398,135.03,134.98,7.4085]
[1742008060851,14.7274398,135.03,134.98,88.1085]
[1742008064570,13.0950398,135.02,134.98,80.7]
[1742008064776,13.0950398,135.01,134.98,80.7]
[1742008065273,20.5020398,135.01,134.98,80.7]
[1742008065577,13.0950398,134.99,134.98,80.7]
[1742008065762,13.0950398,134.99,134.95,88.1098]
[1742008067178,20.5030398,134.99,134.95,88.1098]
[1742008069480,13.0950398,134.99,134.95,88.1098]
[1742008070180,13.0950398,135.0,134.95,88.1098]
[1742008071695,27.4065,135.02,134.95,106.6351]
[1742008071901,13.0950398,135.02,134.95,106.6351]
[1742008072064,1.6324,135.03,134.96,18.933972]
[1742008072261,13.0950398,135.02,134.96,18.933972]
[1742008072987,13.0950398,135.02,134.96,0.14216157]
[1742008073171,13.0950398,135.02,134.96,18.933972]
[1742008073371,13.0950398,135.02,134.97,7.409]
[1742008075385,13.0950398,135.02,134.97,88.109]
[1742008075585,13.0950398,135.01,134.97,88.109]
[1742008077465,13.0950398,135.02,134.97,88.109]
[1742008077662,0.03,135.01,134.97,88.109]
[1742008081179,0.03,135.01,134.97,106.6316]
[1742008084092,0.03,135.01,134.98,18.933972]
[1742008084291,0.03,135.01,134.98,99.633972]
[1742008084492,0.03,135.01,134.98,99.49181043]
[1742008084690,0.03,135.01,134.98,80.7]
[1742008085293,0.03,135.01,134.99,6.42]
[1742008086180,0.03,135.01,134.99,13.8277]
[1742008087701,0.03,135.01,134.99,94.5277]
[1742008088304,0.03,135.01,134.99,87.12]
[1742008089879,0.03,135.01,134.99,88.1078]
[1742008098311,0.03,135.01,135.0,18.933972]
[1742008099986,0.03,135.01,135.0,26.341372]
[1742008102307,0.03,135.01,135.0,107.041372]
[1742008106328,0.03,135.01,135.0,106.89921043]
[1742008106696,0.03,135.01,135.0,107.041372]
[1742008110394,0.03,135.03,135.0,125.559872]
[1742008110594,0.03,135.03,135.02,18.933972]
[1742008110794,0.03,135.03,135.02,99.633972]
[1742008112518,0.03,135.03,135.02,107.040272]
[1742008115810,0.03,135.03,135.02,80.7]
[1742008120119,0.03,135.03,135.02,88.1063]
[1742008125129,0.03,135.03,135.02,107.040272]
[1742008125310,0.03,135.03,135.02,88.1063]
[1742008128732,0.03,135.03,135.02,107.040272]
[1742008129741,1.6283,135.09,135.02,125.555972]
[1742008131111,14.7233398,135.09,135.02,125.555972]
[1742008131332,13.0950398,135.08,135.03,18.79181043]
[1742008132141,13.0950398,135.07,135.02,88.1063]
[1742008132309,13.0950398,135.06,135.02,88.1063]
[1742008134942,6.3086,135.08,135.0,110.5272]
[1742008135113,13.0950398,135.04,135.0,110.5272]
[1742008136835,13.0950398,135.04,135.0,96.7]
[1742008137017,13.0950398,135.04,135.0,104.1072]
[1742008137832,13.1250398,135.04,135.0,104.1072]
[1742008138836,20.5302398,135.04,135.0,104.1072]
[1742008139533,20.5302398,135.04,135.0,96.7]
[1742008139708,13.0950398,135.03,135.0,96.7]
[1742008140535,20.5009398,135.03,135.0,96.7]
[1742008140738,13.0950398,135.02,135.0,16.0]
[1742008140919,13.0950398,135.01,135.0,16.0]
[1742008141117,20.5009398,135.03,135.0,16.0]
[1742008143818,13.0950398,135.03,135.0,16.0]
[1742008144632,13.1250398,135.04,135.0,23.4073]
[1742008144816,0.03,135.04,135.0,23.4073]
[1742008145016,0.03,135.04,135.0,104.1073]
[1742008145837,0.03,135.04,135.0,122.6258]
[1742008146336,0.03,135.04,135.01,18.933972]
[1742008146639,0.03,135.04,135.01,25.353972]
[1742008147031,0.03,135.04,135.02,7.4063]
[1742008152146,0.03,135.04,135.02,88.1063]
[1742008167650,13.1250398,135.04,135.02,80.7]
[1742008167841,13.1250398,135.04,135.0,23.4702]
[1742008168048,13.0950398,135.03,135.0,23.4702]
[1742008168450,0.03,135.04,135.0,23.4702]
[1742008168952,13.1250398,135.04,135.0,23.4702]
[1742008177261,13.0950398,135.02,135.0,16.063]
[1742008179276,13.0950398,135.03,135.0,16.063]
[1742008179562,13.0950398,135.03,135.0,22.9703]
[1742008179953,13.0950398,135.03,135.0,15.563]
[1742008183473,13.0950398,135.03,135.0,15.063]
[1742008183970,1.5739,135.02,135.0,15.063]
[1742008184176,13.0950398,135.01,135.0,9.97594767]
[1742008184347,19.3084398,135.01,135.0,4.14556317]
[1742008184542,19.3084398,135.01,135.0,2.3963714]
[1742008185452,26.7152398,135.01,135.0,2.3963714]
[1742008186174,26.99956294,135.01,135.0,2.3963714]
[1742008187449,45.51666294,135.01,134.94,0.063]
[1742008187654,13.0950398,134.97,134.94,0.063]
[1742008188561,20.5045398,134.97,134.94,0.063]
[1742008190770,13.0950398,134.95,134.94,0.063]
[1742008191168,13.0950398,134.96,134.94,0.063]
[1742008192076,20.5046398,134.96,134.94,0.063]
[1742008194571,13.0950398,134.96,134.94,0.063]
[1742008195568,20.5046398,134.96,134.94,0.063]
[1742008198862,20.5047398,134.96,134.94,0.063]
[1742008199362,13.0950398,134.95,134.94,0.063]
[1742008200582,20.5051398,134.95,134.94,0.063]
[1742008203389,13.0950398,134.95,134.94,0.063]
[1742008204088,20.5051398,134.95,134.94,0.063]
[1742008218107,13.0950398,134.95,134.94,0.063]
[1742008218294,7.4079,134.99,134.94,0.063]
[1742008218606,20.5029398,134.99,134.94,0.063]
[1742008218807,13.0950398,134.99,134.94,0.063]
[1742008220307,20.0,134.98,134.94,0.063]
[1742008220501,33.0950398,134.98,134.94,0.063]
[1742008221483,20.0,134.98,134.94,0.063]
[1742008227718,33.0950398,134.98,134.94,0.063]
[1742008229222,20.0,134.98,134.94,0.063]
[1742008229414,33.0950398,134.98,134.94,0.063]
[1742008230306,13.0950398,134.95,134.94,0.063]
[1742008231003,14.6648398,134.95,134.94,0.063]
[1742008231412,22.0749398,134.95,134.94,0.063]
[1742008253839,20.5048398,134.96,134.94,0.063]
[1742008254023,33.0950398,134.95,134.94,0.063]
[1742008255553,40.5051398,134.95,134.94,0.063]
[1742008258234,27.4101,134.95,134.94,0.063]
[1742008258434,40.5051398,134.95,134.94,0.063]
[1742008260029,40.78946294,134.95,134.94,0.063]
[1742008260441,0.14216157,134.94,134.9,0.063]
[1742008260649,33.0950398,134.91,134.9,0.063]
[1742008261848,40.5073398,134.91,134.9,0.063]
[1742008265656,33.0950398,134.91,134.9,0.063]
[1742008267252,40.5073398,134.91,134.9,0.063]
[1742008267643,33.0950398,134.91,134.9,0.063]
[1742008268856,40.5073398,134.91,134.9,0.063]
[1742008269158,33.0950398,134.91,134.9,0.063]
[1742008270757,13.0950398,134.92,134.9,0.063]
[1742008271077,7.4101,134.95,134.9,0.063]
[1742008271240,13.0950398,134.94,134.9,0.063]
[1742008274579,20.0,134.93,134.9,0.063]
[1742008275741,40.5058398,134.94,134.9,0.063]
[1742008276150,33.0950398,134.94,134.9,0.063]
[1742008276664,20.0,134.94,134.9,0.063]
[1742008276851,20.0,134.94,134.9,7.4758]
[1742008278854,40.5057398,134.94,134.9,0.063]
[1742008280946,20.5057398,134.94,134.9,0.063]
[1742008281766,13.0950398,134.93,134.9,0.063]
[1742008282149,20.5057398,134.94,134.9,0.063]
[1742008282366,13.0950398,134.93,134.9,0.063]
[1742008282564,20.5057398,134.94,134.9,0.063]